bitfinex-derivatives/quotes_ETHF0:USTF0_20250518
["timestamp","ask_amount","ask_price","bid_price","bid_amount"]
[1747541875221,3.058,2482.9,2482.8,4.42863754]
[1747541876916,3.058,2482.9,2482.8,4.42860991]
[1747541880427,3.058,2482.9,2482.8,3.73900991]
[1747541880628,3.058,2482.9,2482.8,3.73904088]
[1747541881927,3.058,2482.9,2482.8,3.73901068]
[1747541883325,3.058,2482.9,2482.8,2.93374068]
[1747541883531,3.86326,2482.9,2482.8,1.56904068]
[1747541883729,3.86326,2482.9,2482.8,1.56916113]
[1747541883931,4.52456,2482.9,2482.8,1.56916113]
[1747541884132,3.7193,2482.9,2482.8,1.23725878]
[1747541884635,5.85926,2482.9,2482.8,1.23725878]
[1747541885132,5.054,2482.9,2482.7,8.49631]
[1747541885326,1.9535,2482.8,2482.7,8.49631]
[1747541885528,1.9535,2482.8,2482.7,8.82828681]
[1747541885833,1.9535,2482.8,2482.7,8.82829681]
[1747541886330,5.0115,2482.8,2482.7,8.82829681]
[1747541887333,5.0115,2482.8,2482.7,8.82835439]
[1747541889138,5.0115,2482.8,2482.7,8.82838031]
[1747541892844,5.0115,2482.8,2482.7,8.82877762]
[1747541893441,5.0115,2482.8,2482.7,10.06877553]
[1747541894645,5.0115,2482.8,2482.7,10.06907467]
[1747541896444,5.0115,2482.8,2482.7,10.06932462]
[1747541898745,3.058,2482.8,2482.7,10.06932462]
[1747541900244,3.058,2482.9,2482.8,0.80529]
[1747541900546,3.058,2482.9,2482.8,1.1382294]
[1747541901149,3.058,2482.9,2482.8,2.37822731]
[1747541901950,3.058,2482.9,2482.8,2.37819515]
[1747541903948,3.058,2482.9,2482.8,2.37810313]
[1747541904250,5.0739,2482.9,2482.8,2.37810313]
[1747541905651,5.0739,2482.9,2482.8,2.37812846]
[1747541907545,5.0739,2482.9,2482.8,2.37812965]
[1747541908053,3.7455,2482.9,2482.8,2.37812965]
[1747541908954,3.058,2482.9,2482.8,2.37812965]
[1747541909152,3.058,2482.9,2482.8,3.06522965]
[1747541909451,3.058,2482.9,2482.8,3.06527808]
[1747541911252,3.058,2482.9,2482.8,3.06528472]
[1747541912156,0.6879,2483.1,2483.0,0.80523]
[1747541912451,0.6879,2483.1,2483.0,1.13812681]
[1747541912857,0.662,2483.2,2483.1,0.80519]
[1747541913156,3.72,2483.2,2483.1,1.13807318]
[1747541913555,3.058,2483.2,2483.1,1.13807318]
[1747541913853,3.058,2483.2,2483.1,2.37807109]
[1747541914756,3.058,2483.2,2483.1,2.37796367]
[1747541916250,3.058,2483.2,2483.1,10.06696367]
[1747541916449,3.058,2483.2,2483.1,10.75306367]
[1747541916650,3.058,2483.2,2483.1,10.75284367]
[1747541917153,1.2923,2483.4,2483.3,0.80513]
[1747541917359,1.2923,2483.4,2483.3,1.13768576]
[1747541918261,4.3503,2483.4,2483.3,1.13768576]
[1747541918561,3.058,2483.4,2483.3,2.37745397]
[1747541918860,3.058,2483.4,2483.3,4.28705397]
[1747541919962,3.058,2483.4,2483.3,2.37745397]
[1747541920156,3.058,2483.4,2483.3,1.57207665]
[1747541920356,3.058,2483.4,2483.3,2.37720665]
[1747541920559,5.0214,2483.4,2483.3,2.37720665]
[1747541921559,5.0214,2483.4,2483.3,1.13720874]
[1747541923160,5.0214,2483.4,2483.2,0.80515]
[1747541923360,2.0141,2483.3,2483.2,0.80515]
[1747541923662,2.0141,2483.3,2483.2,1.13713652]
[1747541923959,2.0141,2483.3,2483.2,1.13715505]
[1747541924161,5.0721,2483.3,2483.2,1.13715505]
[1747541925659,5.0721,2483.3,2483.2,1.13720277]
[1747541926155,5.0721,2483.3,2483.2,0.80515]
[1747541926359,5.0721,2483.3,2483.2,1.13721461]
[1747541927562,5.0721,2483.3,2483.2,1.13728269]
[1747541929358,5.16428003,2483.3,2483.2,1.13728269]
[1747541929560,5.16428003,2483.3,2483.2,1.13728387]
[1747541929766,5.16428003,2483.3,2483.2,1.13723805]
[1747541931065,5.16428003,2483.3,2483.2,2.37555742]
[1747541931261,5.16428003,2483.3,2483.2,2.37552581]
[1747541932665,5.16428003,2483.3,2483.2,2.37555452]
[1747541933168,5.16428003,2483.3,2483.2,2.37563738]
[1747541934968,5.16428003,2483.3,2483.2,2.37567848]
[1747541936769,5.16428003,2483.3,2483.2,2.37574185]
[1747541938672,5.16428003,2483.3,2483.2,2.37573179]
[1747541939974,3.15018003,2483.3,2483.2,2.37573179]
[1747541940178,3.15018003,2483.3,2483.2,3.06593179]
[1747541940568,3.15018003,2483.3,2483.2,3.06602054]
[1747541941274,0.09218003,2483.3,2483.2,3.06602054]
[1747541941774,0.09218003,2483.3,2483.2,3.06601684]
[1747541942075,3.15018003,2483.3,2483.2,3.06601684]
[1747541942278,3.15018003,2483.3,2483.2,4.34931684]
[1747541942677,3.15018003,2483.3,2483.2,7.55711684]
[1747541943076,0.09218003,2483.3,2483.2,7.55711684]
[1747541943582,0.09218003,2483.3,2483.2,7.55688635]
[1747541944375,3.15018003,2483.3,2483.2,7.55688635]
[1747541945279,3.15018003,2483.3,2483.2,9.1701646]
[1747541947181,3.15018003,2483.3,2483.2,9.17004864]
[1747541947780,3.15018003,2483.3,2483.2,9.17004267]
[1747541949087,3.15018003,2483.3,2483.2,16.85398435]
[1747541950986,3.15018003,2483.3,2483.2,16.85399201]
[1747541952085,0.09218003,2483.3,2483.2,16.85399201]
[1747541952787,0.09218003,2483.3,2483.2,16.85396487]
[1747541952982,0.09218003,2483.3,2483.2,16.43974045]
[1747541953288,3.15018003,2483.3,2483.2,16.43974045]
[1747541954586,3.15018003,2483.3,2483.2,16.43965944]
[1747541955981,3.15018003,2483.3,2483.2,15.23959132]
[1747541956187,3.15018003,2483.3,2483.2,16.85288386]
[1747541956387,3.15018003,2483.3,2483.2,16.85286882]
[1747541958187,3.15018003,2483.3,2483.2,16.85294595]
[1747541959391,3.15018003,2483.3,2483.2,16.16274595]
[1747541959979,3.15018003,2483.3,2483.2,15.83086191]
[1747541960187,0.09218003,2483.3,2483.2,16.16278332]
[1747541960386,0.09218003,2483.3,2483.2,14.54949078]
[1747541960584,0.09218003,2483.3,2483.2,6.86649078]
[1747541960888,0.09218003,2483.3,2483.2,22.23449078]
[1747541961084,3.15018003,2483.3,2483.2,22.23449078]
[1747541961685,3.15018003,2483.3,2483.2,14.55149078]
[1747541961891,3.15018003,2483.3,2483.2,22.23353431]
[1747541962190,0.09218003,2483.3,2483.2,22.23353431]
[1747541963886,0.09218003,2483.3,2483.2,23.43288191]
[1747541964290,0.09218003,2483.3,2483.2,24.08458191]
[1747541965186,3.15018003,2483.3,2483.2,23.43288191]
[1747541965391,3.15018003,2483.3,2483.2,15.75088191]
[1747541965585,3.15018003,2483.3,2483.2,23.43288191]
[1747541967188,3.15018003,2483.3,2483.2,15.75088191]
[1747541967395,3.15018003,2483.3,2483.2,23.43282429]
[1747541968092,3.15018003,2483.3,2483.2,22.14952429]
[1747541972194,0.09218003,2483.3,2483.2,22.14952429]
[1747541972995,0.09218003,2483.3,2483.2,23.40312924]
[1747541974098,0.78208003,2483.3,2483.2,23.40312924]
[1747541974799,0.78208003,2483.3,2483.2,23.40323251]
[1747541976301,0.78208003,2483.3,2483.2,23.40316647]
[1747541976502,0.78208003,2483.3,2483.2,23.40320914]
[1747541977202,0.09218003,2483.3,2483.2,23.40320914]
[1747541977404,0.09218003,2483.3,2483.2,24.09290914]
[1747541978203,3.15018003,2483.3,2483.2,24.09290914]
[1747541978396,3.15018003,2483.3,2483.2,24.09290974]
[1747541980102,3.15018003,2483.3,2483.2,23.76061697]
[1747541980304,3.15018003,2483.3,2483.2,24.09291794]
[1747541980708,3.15018003,2483.3,2483.2,22.89357034]
[1747541982020,3.15018003,2483.3,2483.2,22.89356981]
[1747541983809,3.15018003,2483.3,2483.2,22.89357443]
[1747541985803,3.15018003,2483.3,2483.2,22.89358989]
[1747541987609,3.15018003,2483.3,2483.2,22.89360618]
[1747541991410,3.15018003,2483.3,2483.2,22.89361097]
[1747541994917,3.15018003,2483.3,2483.2,22.89360381]
[1747541995317,0.6453,2483.8,2483.7,0.805]
[1747541995512,1.2756,2483.8,2483.7,1.13733444]
[1747541996315,4.3336,2483.8,2483.7,1.13733444]
[1747541996710,5.5838,2483.8,2483.7,2.37562502]
[1747541998514,5.5838,2483.8,2483.7,2.04331937]
[1747541998716,5.5838,2483.8,2483.7,2.37560644]
[1747542000516,5.5838,2483.8,2483.7,2.37561785]
[1747542001711,5.5838,2483.8,2483.7,2.37563379]
[1747542003421,5.5838,2483.8,2483.7,2.37566296]
[1747542005219,5.5838,2483.8,2483.7,2.37566571]
[1747542005419,5.67598003,2483.8,2483.7,2.37566571]
[1747542006822,3.78048003,2483.8,2483.7,5.58346571]
[1747542007120,3.78048003,2483.8,2483.7,5.5833695]
[1747542007415,3.78048003,2483.8,2483.7,7.6157695]
[1747542007611,3.78048003,2483.8,2483.7,9.21696781]
[1747542007808,3.15018003,2483.8,2483.7,9.21696781]
[1747542008119,0.639,2484.0,2483.9,0.80493]
[1747542008320,0.639,2484.0,2483.9,8.81418013]
[1747542008621,0.639,2484.0,2483.9,10.0524995]
[1747542009218,3.697,2484.0,2483.9,10.0524995]
[1747542010320,5.0086,2484.0,2483.9,2.3754995]
[1747542010518,5.0086,2484.0,2483.9,17.7284995]
[1747542010718,5.0086,2484.0,2483.9,18.12177399]
[1747542010919,5.0086,2484.0,2483.9,10.44577399]
[1747542011233,5.0086,2484.0,2483.9,2.76877399]
[1747542011417,5.0086,2484.0,2483.9,2.43652386]
[1747542012124,5.0086,2484.0,2483.9,1.19820449]
[1747542012324,5.0086,2484.0,2483.9,2.00313449]
[1747542012718,10.0086,2484.0,2483.9,1.19820449]
[1747542012925,10.0086,2484.0,2483.9,2.00313449]
[1747542013527,5.0086,2484.0,2483.9,2.00313449]
[1747542014026,5.0086,2484.0,2483.9,0.80493]
[1747542015027,5.0086,2484.0,2483.8,0.80494]
[1747542015326,1.354,2483.9,2483.8,0.80494]
[1747542015523,1.354,2483.9,2483.8,0.33163375]
[1747542015924,1.354,2483.9,2483.8,1.13660375]
[1747542016124,4.412,2483.9,2483.8,1.13660375]
[1747542016323,4.412,2483.9,2483.8,1.13662334]
[1747542016727,4.412,2483.9,2483.8,0.33165334]
[1747542016920,4.412,2483.9,2483.8,1.13662334]
[1747542018123,4.412,2483.9,2483.8,0.33165334]
[1747542018323,0.80506,2483.5,2483.4,4.40600449]
[1747542018524,0.80506,2483.5,2483.4,1.19820449]
[1747542019130,3.058,2483.5,2483.4,2.00329449]
[1747542019329,4.3766,2483.5,2483.4,2.00329449]
[1747542019630,3.058,2483.5,2483.4,18.9682107]
[1747542019833,3.058,2483.5,2483.4,20.24538239]
[1747542020137,1.00953673,2483.5,2483.4,25.24538239]
[1747542020436,1.00953673,2483.5,2483.4,29.871869]
[1747542020730,1.00953673,2483.5,2483.4,29.90961071]
[1747542021636,1.00953673,2483.5,2483.4,29.9094807]
[1747542022436,1.00953673,2483.5,2483.4,22.2344807]
[1747542022741,1.00953673,2483.5,2483.4,14.5574807]
[1747542023036,1.00953673,2483.5,2483.4,24.9094807]
[1747542023433,1.00953673,2483.5,2483.4,24.90955061]
[1747542024336,1.00953673,2483.5,2483.4,26.1077551]
[1747542026932,1.00953673,2483.5,2483.4,31.1077551]
[1747542027131,0.09218003,2483.9,2483.8,0.80497]
[1747542027326,0.09218003,2483.9,2483.8,16.48908148]
[1747542027833,0.09218003,2483.9,2483.8,19.13268148]
[1747542028232,3.15018003,2483.9,2483.8,20.36862768]
[1747542028935,3.15018003,2483.9,2483.8,20.36858341]
[1747542030137,3.15018003,2483.9,2483.8,23.57638341]
[1747542030740,3.15018003,2483.9,2483.8,23.57639066]
[1747542034441,3.15018003,2483.9,2483.8,23.57641354]
[1747542036347,3.15018003,2483.9,2483.8,23.57643407]
[1747542038144,3.15018003,2483.9,2483.8,23.57645554]
[1747542038852,3.15018003,2483.9,2483.8,22.91235554]
[1747542040050,3.15018003,2483.9,2483.8,22.91247713]
[1747542041656,3.15018003,2483.9,2483.8,22.91249568]
[1747542045365,3.15018003,2483.9,2483.8,22.91248584]
[1747542046458,3.15018003,2483.9,2483.8,22.5802162]
[1747542046761,3.15018003,2483.9,2483.8,22.91248506]
[1747542048858,3.15018003,2483.9,2483.8,13.25798506]
[1747542049057,3.15018003,2483.9,2483.8,10.05018506]
[1747542049658,3.15018003,2483.9,2483.8,2.37318506]
[1747542050957,3.15018003,2483.9,2483.8,2.0409162]
[1747542051158,3.15018003,2483.9,2483.8,2.37366273]
[1747542052852,3.15018003,2483.9,2483.8,2.37363917]
[1747542056653,3.15018003,2483.9,2483.8,2.37366316]
[1747542057759,3.15018003,2483.9,2483.8,3.69336316]
[1747542058363,3.15018003,2483.9,2483.8,3.69333131]
[1747542059563,3.15018003,2483.9,2483.8,3.69334165]
[1747542060366,3.15018003,2483.9,2483.8,7.57184165]
[1747542061460,3.15018003,2483.9,2483.8,7.2391162]
[1747542061666,3.15018003,2483.9,2483.8,7.57181978]
[1747542063355,3.15018003,2483.9,2483.8,8.77002427]
[1747542065061,3.15018003,2483.9,2483.8,8.76982214]
[1747542065368,3.15018003,2483.9,2483.8,12.98783654]
[1747542065571,3.15018003,2483.9,2483.8,13.39083036]
[1747542068763,3.15018003,2483.9,2483.8,13.39067214]
[1747542070565,3.15018003,2483.9,2483.8,13.39061915]
[1747542071970,3.15018003,2483.9,2483.8,13.3905974]
[1747542072568,3.15018003,2483.9,2483.8,13.39059124]
[1747542074265,3.15018003,2483.9,2483.8,13.39057267]
[1747542074772,3.15018003,2483.9,2483.8,11.78937436]
[1747542075574,3.15018003,2483.9,2483.8,5.58095996]
[1747542076072,3.15018003,2483.9,2483.8,5.58100814]
[1747542079677,3.15018003,2483.9,2483.8,5.58104819]
[1747542081570,3.15018003,2483.9,2483.8,5.58107678]
[1747542083484,3.15018003,2483.9,2483.8,6.27297678]
[1747542084581,3.15018003,2483.9,2483.8,13.94397678]
[1747542084782,3.15018003,2483.9,2483.8,14.45273028]
[1747542085381,3.15018003,2483.9,2483.8,14.45270847]
[1747542087188,3.15018003,2483.9,2483.8,14.45275797]
[1747542088285,3.15018003,2483.9,2483.8,15.80645797]
[1747542088985,3.15018003,2483.9,2483.8,15.80649416]
[1747542091289,3.15018003,2483.9,2483.8,14.60584066]
[1747542092493,3.15018003,2483.9,2483.8,14.60587527]
[1747542092791,3.15018003,2483.9,2483.8,14.60487527]
[1747542094494,3.15018003,2483.9,2483.8,14.60490057]
[1747542094692,3.15018003,2483.9,2483.8,13.25120057]
[1747542097394,3.15018003,2483.9,2483.8,4.77623057]
[1747542097593,3.15018003,2483.9,2483.8,6.78281091]
[1747542098098,3.15018003,2483.9,2483.8,6.78237537]
[1747542098806,3.84128003,2483.9,2483.8,6.78237537]
[1747542101006,3.84128003,2483.9,2483.8,5.58076503]
[1747542101305,3.84740403,2483.9,2483.8,5.58076503]
[1747542101604,3.84740403,2483.9,2483.8,5.58070286]
[1747542103502,3.84740403,2483.9,2483.8,5.5806952]
[1747542104509,3.84740403,2483.9,2483.8,4.7757252]
[1747542104702,3.84740403,2483.9,2483.8,5.5806952]
[1747542104900,5.18760403,2483.9,2483.8,5.5806952]
[1747542105097,5.18760403,2483.9,2483.8,2.3728952]
[1747542105306,5.18760403,2483.9,2483.8,2.37291363]
[1747542105897,10.18760403,2483.9,2483.8,2.37291363]
[1747542106707,10.18760403,2483.9,2483.8,2.37289833]
[1747542106896,10.99254403,2483.9,2483.8,1.56792833]
[1747542107102,14.20034403,2483.9,2483.8,1.56792833]
[1747542107311,14.20034403,2483.9,2483.8,1.2359462]
[1747542108003,0.805,2483.8,2483.5,0.80505]
[1747542108198,5.8488,2483.8,2483.6,0.33199098]
[1747542108401,5.8488,2483.8,2483.7,0.33199098]
[1747542108601,4.4992,2483.8,2483.7,0.33199098]
[1747542109410,9.4992,2483.8,2483.7,0.33199098]
[1747542110412,4.4992,2483.8,2483.7,0.33199098]
[1747542110811,4.4992,2483.8,2483.7,0.33172398]
[1747542111697,9.4992,2483.8,2483.7,0.33172398]
[1747542112610,9.4992,2483.8,2483.3,21.02241034]
[1747542112611,8.6942,2483.8,2483.3,13.35241034]
[1747542112914,0.80506,2483.6,2483.4,1.13683121]
[1747542113114,0.80506,2483.6,2483.5,0.33174121]
[1747542113305,0.80507,2483.5,2483.4,0.80509]
[1747542113505,0.80507,2483.5,2483.4,1.13679758]
[1747542114114,3.86307,2483.5,2483.4,1.13679758]
[1747542114615,3.86307,2483.5,2483.4,0.33165719]
[1747542115709,3.86307,2483.5,2483.4,1.60865719]
[1747542117315,3.86307,2483.5,2483.4,0.33165719]
[1747542117509,3.86307,2483.5,2483.4,1.71195719]
[1747542117710,3.058,2483.5,2483.4,2.51705719]
[1747542117910,3.058,2483.5,2483.4,3.14285719]
[1747542118419,3.058,2483.5,2483.4,2.33775719]
[1747542121109,3.058,2483.5,2483.4,18.48485719]
[1747542121515,3.058,2483.5,2483.4,18.48461228]
[1747542122314,3.058,2483.5,2483.4,19.72283204]
[1747542123124,3.058,2483.5,2483.4,19.72291242]
[1747542124223,2.0185,2483.5,2483.4,29.27523389]
[1747542124423,1.7644,2483.5,2483.4,29.27523389]
[1747542125019,1.7644,2483.5,2483.4,29.27518233]
[1747542125219,0.006124,2483.9,2483.8,0.80497]
[1747542125417,0.006124,2483.9,2483.8,19.6842111]
[1747542125926,0.006124,2483.9,2483.8,20.92243086]
[1747542126123,3.064124,2483.9,2483.8,20.92243086]
[1747542126627,3.064124,2483.9,2483.8,20.922459]
[1747542126826,3.064124,2483.9,2483.8,20.92245966]
[1747542127615,3.2078,2484.6,2484.5,0.80474]
[1747542127821,3.2078,2484.9,2484.5,1.1362099]
[1747542128031,3.2078,2484.9,2484.6,0.6563]
[1747542128325,4.5183,2484.9,2484.6,1.9477]
[1747542128630,5.32292,2484.9,2484.6,1.9477]
[1747542128820,5.32292,2484.9,2484.7,1.2741]
[1747542129026,6.92788403,2484.8,2484.7,1.2741]
[1747542129228,8.65508403,2484.8,2484.7,2.07878]
[1747542131338,3.058,2484.8,2484.7,2.07878]
[1747542133534,4.3624,2484.8,2484.7,2.07878]
[1747542133929,4.3624,2484.8,2484.6,16.0003]
[1747542133930,4.3624,2484.8,2484.6,0.80469]
[1747542134135,1.3044,2484.7,2484.6,0.80469]
[1747542135233,4.3624,2484.7,2484.5,0.80472]
[1747542135431,0.6412,2484.6,2484.5,0.80472]
[1747542135626,20.5356,2484.6,2483.8,1.20161034]
[1747542135831,4.0127,2484.1,2483.8,2.00658034]
[1747542136032,1.2934,2484.0,2483.9,0.80494]
[1747542136226,2.624,2484.0,2483.9,0.80494]
[1747542137025,2.624,2484.0,2483.8,2.00656034]
[1747542137234,4.3514,2484.0,2483.9,0.80494]
[1747542137435,0.80494,2483.9,2483.8,1.20161034]
[1747542137927,5.80494,2483.9,2483.8,1.20161034]
[1747542138131,8.86294,2483.9,2483.8,1.20161034]
[1747542138430,8.86294,2483.9,2483.6,0.80502]
[1747542138630,3.86294,2483.9,2483.6,0.80502]
[1747542138841,0.80497,2483.8,2483.6,0.80502]
[1747542139144,3.86296,2483.9,2483.6,0.80502]
[1747542139443,3.058,2483.9,2483.7,0.805]
[1747542140441,3.86294,2483.9,2483.7,0.805]
[1747542140637,3.058,2483.9,2483.4,4.54]
[1747542140843,3.058,2483.9,2483.8,0.80497]
[1747542143243,3.058,2483.9,2483.7,0.80498]
[1747542143442,3.058,2483.9,2483.7,2.13768]
[1747542143736,3.058,2483.9,2483.8,1.3327]
[1747542145052,3.058,2483.9,2483.8,2.13767]
[1747542147055,3.058,2483.9,2483.8,6.65922647]
[1747542149259,3.058,2483.9,2483.8,6.65931597]
[1747542149461,3.058,2483.9,2483.8,6.65935085]
[1747542149661,3.058,2483.9,2483.8,2.46829128]
[1747542150052,3.058,2483.9,2483.7,4.01278]
[1747542150258,1.3389,2483.8,2483.7,4.01278]
[1747542152265,4.3969,2483.8,2483.7,4.01278]
[1747542155958,4.3969,2483.8,2483.7,0.80498]
[1747542156371,4.48908003,2483.8,2483.7,0.80498]
[1747542157469,4.48908003,2483.8,2483.7,0.805]
[1747542157674,5.75698003,2483.8,2483.7,0.805]
[1747542159176,6.56195003,2483.8,2483.6,0.80501]
[1747542159365,1.3534,2483.7,2483.6,0.80501]
[1747542159976,2.15842,2483.7,2483.5,0.80504]
[1747542160175,5.21642,2483.7,2483.6,0.80504]
[1747542160472,4.4114,2483.7,2483.6,0.80504]
[1747542163070,4.4114,2483.7,2483.5,0.80505]
[1747542163276,1.2557,2483.6,2483.5,0.80505]
[1747542163479,1.2557,2483.6,2483.5,1.13653956]
[1747542163674,2.06074,2483.6,2483.5,0.33148672]
[1747542164184,5.11874,2483.6,2483.5,0.33148672]
[1747542164384,5.11874,2483.6,2483.4,5.30799]
[1747542164565,1.2557,2483.5,2483.4,5.30799]
[1747542164771,1.2557,2483.5,2483.1,4.40941034]
[1747542164972,0.80514,2483.3,2483.1,4.40941034]
[1747542165183,1.2557,2483.2,2483.1,5.21461034]
[1747542165477,1.2557,2483.2,2483.1,5.5463205]
[1747542166079,1.2557,2483.2,2483.1,2.3385205]
[1747542166276,4.3137,2483.2,2483.1,2.3385205]
[1747542166778,4.3137,2483.2,2483.1,2.51121016]
[1747542167679,4.3137,2483.2,2483.1,2.1795]
[1747542170582,4.40588003,2483.2,2483.1,2.1795]
[1747542172591,4.40588003,2483.2,2483.1,1.3743]
[1747542172886,0.80522,2483.1,2482.9,0.80526]
[1747542173077,2.11902,2483.1,2482.9,2.16536]
[1747542173277,0.6621,2483.0,2482.9,2.16536]
[1747542173480,0.6621,2483.0,2482.9,2.49651989]
[1747542174288,3.7201,2483.0,2482.9,2.49651989]
[1747542174879,3.058,2483.0,2482.9,12.09495552]
[1747542175184,0.09218003,2483.2,2483.1,0.8052]
[1747542175379,0.09218003,2483.2,2483.1,12.16815989]
[1747542175679,0.09218003,2483.2,2483.1,16.76659552]
[1747542175881,0.09218003,2483.2,2483.1,8.94259552]
[1747542176076,0.09218003,2483.2,2483.1,19.97315989]
[1747542176077,3.15018003,2483.2,2483.1,19.97315989]
[1747542176282,3.15018003,2483.2,2483.1,0.33115989]
[1747542176485,3.15018003,2483.2,2483.0,2.10213]
[1747542177088,4.43288003,2483.2,2483.1,1.2969]
[1747542178090,4.43288003,2483.2,2483.1,2.1021]
[1747542178282,5.09128003,2483.2,2483.1,2.1021]
[1747542179879,5.09128003,2483.2,2483.1,2.43343236]
[1747542180290,5.09128003,2483.2,2483.1,2.43343706]
[1747542181590,5.09128003,2483.2,2483.1,2.43361755]
[1747542183391,5.09128003,2483.2,2483.1,2.43365311]
[1747542185086,5.09128003,2483.2,2483.1,1.62845311]
[1747542185390,3.15018003,2483.2,2483.1,15.18948181]
[1747542185992,3.15018003,2483.2,2483.1,16.42856603]
[1747542186492,3.15018003,2483.2,2483.1,11.42856603]
[1747542187091,3.15018003,2483.2,2483.1,11.42847047]
[1747542189295,3.15018003,2483.2,2483.1,13.02966878]
[1747542190796,3.15018003,2483.2,2483.1,13.02969837]
[1747542191299,3.15018003,2483.2,2483.1,20.82069837]
[1747542192498,3.15018003,2483.2,2483.1,20.82072706]
[1747542196902,3.15018003,2483.2,2483.1,13.02972706]
[1747542197093,3.15018003,2483.2,2483.1,20.80772706]
[1747542197298,0.09218003,2483.2,2483.1,20.80672706]
[1747542197702,0.71758003,2483.2,2483.1,20.80672706]
[1747542198001,0.71758003,2483.2,2483.1,16.2578687]
[1747542198201,3.77558003,2483.2,2483.1,16.2578687]
[1747542199101,0.71758003,2483.2,2483.1,16.2578687]
[1747542199598,0.71758003,2483.2,2483.1,15.85820668]
[1747542199797,0.71758003,2483.2,2483.1,15.85822646]
[1747542200304,3.77558003,2483.2,2483.1,15.85822646]
[1747542200698,3.77558003,2483.2,2483.1,12.65042646]
[1747542200901,3.15018003,2483.2,2483.1,15.85822646]
[1747542201105,3.15018003,2483.2,2483.1,20.16307984]
[1747542201304,0.09218003,2483.2,2483.1,20.16307984]
[1747542201602,0.09218003,2483.2,2483.1,20.16295855]
[1747542202193,3.15018003,2483.2,2483.1,20.16295855]
[1747542202700,3.15018003,2483.2,2483.1,18.96142226]
[1747542202906,3.15018003,2483.2,2483.1,20.56262057]
[1747542204106,3.15018003,2483.2,2483.1,17.35482057]
[1747542204405,3.15018003,2483.2,2483.1,20.56262057]
[1747542205406,3.15018003,2483.2,2483.1,20.56267818]
[1747542206409,2.66704275,2483.2,2483.1,20.56267818]
[1747542207107,2.75922278,2483.2,2483.1,20.56258817]
[1747542208011,1.2841,2483.7,2483.6,0.80504]
[1747542208211,4.3421,2483.7,2483.6,4.34439226]
[1747542208703,4.3421,2483.7,2483.6,5.70669226]
[1747542208906,4.3421,2483.7,2483.6,5.70664208]
[1747542209501,4.3421,2483.7,2483.6,6.9457263]
[1747542210710,4.3421,2483.7,2483.6,6.61422422]
[1747542210919,4.3421,2483.7,2483.6,6.94578311]
[1747542211618,4.3421,2483.7,2483.6,3.73798311]
[1747542211921,4.3421,2483.7,2483.6,6.94578311]
[1747542212619,4.3421,2483.7,2483.6,6.94575685]
[1747542214423,4.3421,2483.7,2483.6,6.94588825]
[1747542215117,4.43428003,2483.7,2483.6,6.94588825]
[1747542216319,4.43428003,2483.7,2483.6,6.94591272]
[1747542218429,3.80658003,2483.7,2483.6,11.57133758]
[1747542218630,2.29287003,2483.7,2483.6,12.20693758]
[1747542218932,0.6419,2484.3,2484.2,0.80484]
[1747542219127,0.6419,2484.3,2484.2,1.1363511]
[1747542219531,0.6419,2484.3,2484.2,2.37543532]
[1747542220121,3.6999,2484.3,2484.2,1.57059532]
[1747542220326,3.6999,2484.3,2484.2,2.37543532]
[1747542220928,3.6999,2484.3,2484.2,1.57059532]
[1747542221328,3.6999,2484.3,2484.2,2.37543532]
[1747542221631,3.6999,2484.3,2484.2,2.04392422]
[1747542222426,9.50471,2484.3,2484.2,0.19998422]
[1747542224236,9.50471,2484.3,2484.1,0.80487]
[1747542224439,0.80485,2484.2,2484.0,0.80489]
[1747542224734,0.80488,2484.1,2483.8,7.749]
[1747542224938,0.80489,2484.1,2483.9,0.80494]
[1747542225238,0.09218003,2483.7,2483.6,3.2078]
[1747542225534,0.09218003,2483.7,2483.6,4.34431864]
[1747542226134,3.15018003,2483.7,2483.6,4.34431864]
[1747542226838,3.15018003,2483.7,2483.6,3.53927864]
[1747542227038,3.15018003,2483.7,2483.6,1.13651864]
[1747542227338,3.15018003,2483.7,2483.6,1.13654352]
[1747542228939,3.15018003,2483.7,2483.6,0.33150352]
[1747542229339,3.15018003,2483.7,2483.6,0.3315826]
[1747542229743,3.15018003,2483.7,2483.6,1.1366226]
[1747542229940,3.15018003,2483.7,2483.6,0.3315826]
[1747542230241,8.95519003,2483.7,2483.6,0.3315826]
[1747542230539,0.8051,2483.4,2483.3,1.20118256]
[1747542230732,0.8051,2483.4,2483.3,1.53290484]
[1747542230935,0.80509,2483.5,2483.3,2.33803484]
[1747542231136,3.6895,2483.4,2483.3,2.00631256]
[1747542231337,4.3468,2483.4,2483.3,2.33806451]
[1747542231741,4.3468,2483.4,2483.3,1.13688195]
[1747542232341,4.3468,2483.4,2483.3,0.80513]
[1747542234031,4.3468,2483.4,2483.3,1.13663103]
[1747542234343,4.3468,2483.4,2483.3,2.18213]
[1747542236239,4.3468,2483.4,2483.3,2.51348837]
[1747542236545,3.058,2483.4,2483.3,2.51337412]
[1747542237745,3.058,2483.4,2483.3,3.74481521]
[1747542238145,3.058,2483.4,2483.3,11.49581521]
[1747542239349,3.058,2483.4,2483.3,14.70361521]
[1747542240246,3.058,2483.4,2483.3,14.70357131]
[1747542241642,3.058,2483.4,2483.3,14.70355511]
[1747542243246,3.058,2483.6,2483.5,0.80507]
[1747542243443,3.058,2483.6,2483.5,1.13625402]
[1747542244050,3.058,2483.6,2483.5,1.82595402]
[1747542244241,3.058,2483.6,2483.5,3.74259511]
[1747542245051,3.058,2483.6,2483.5,3.74262939]
[1747542246849,3.058,2483.6,2483.5,3.7426354]
[1747542250456,3.058,2483.6,2483.5,5.1020354]
[1747542252357,3.058,2483.6,2483.5,4.77081109]
[1747542252654,3.058,2483.6,2483.5,3.72760253]
[1747542252847,3.058,2483.6,2483.5,1.56313253]
[1747542253743,3.058,2483.6,2483.5,2.36820253]
[1747542253949,3.058,2483.6,2483.5,1.13676144]
[1747542254250,3.058,2483.6,2483.5,2.50574192]
[1747542255254,3.058,2483.6,2483.5,1.13694192]
[1747542255453,3.058,2483.6,2483.5,0.33187192]
[1747542255850,4.3276,2483.6,2483.5,0.33187192]
[1747542256756,4.3276,2483.6,2483.5,1.13694192]
[1747542257957,4.3276,2483.6,2483.5,0.33193602]
[1747542258257,4.3276,2483.6,2483.5,1.13700602]
[1747542258455,5.13264,2483.6,2483.5,1.13700602]
[1747542258959,5.13264,2483.6,2483.5,0.33193602]